Cogmind - Beta 17 @@@ ROGUE MODE // 2026.08.17 @ 13:06:52 Player: THN-L0C Result: Destroyed by 0D-IOH(R) with Subdweller Machine Gun Performance ------------- Evolutions (0) 0 Regions Visited (2) 400 Robots Destroyed (6) 30 Value Destroyed (68) 68 Prototype IDs (1) 20 Alien Tech Used (0) 0 Bonus (93) 93 TOTAL SCORE: 611 Bonus ------- Follower Combat Kills 93 Cogmind --------- Core Integrity 0/250 Matter 300/300 Energy 93/100 System Corruption 3% Temperature Cool (0) Movement Treading (360) Ox2 Location -10/Subcaves Parts ------- > --- POWER (1) -------- (None) > --- PROPULSION (2) --- Spiked Treads Spiked Treads > --- UTILITY (2) ------ Huge Storage Unit V3-11A's Pendant > --- WEAPON (2) ------- Makeshift Hammer Ripper > --- INVENTORY (25) --- Subdweller Power Source Subdweller Power Source Light Treads Subdweller Monowheel Subdweller Monowheel Flightbrick High-capacity Storage Unit Humpback Medium Matter Pod (100) Improved Terrain Scanner Makeshift Thermal Plating Self-contained Transmogrifier Makeshift Laser Subdweller Machine Gun Subdweller Machine Gun Datajack Mining Laser Enhanced Flamer Piercing Trap Peak State ------------ > --- POWER ------------ Subdweller Power Source > --- PROPULSION ------- Light Treads Spiked Treads > --- UTILITY ---------- High-capacity Storage Unit V3-11A's Pendant > --- WEAPON ----------- Makeshift Hammer Ripper > --- INVENTORY -------- Subdweller Monowheel Subdweller Monowheel Flightbrick Disposable Heat Sink Small Storage Unit Huge Storage Unit Medium Matter Pod Improved Terrain Scanner Makeshift Thermal Plating Self-contained Transmogrifier Subdweller Machine Gun Subdweller Machine Gun Datajack Mining Laser Enhanced Flamer Piercing Trap [Rating: 24] Favorites ----------- Power Subdweller Power Source Engine Subdweller Power Source Propulsion Light Treads Treads Light Treads Utility High-capacity Storage Unit Device V3-11A's Pendant Storage High-capacity Storage Unit Weapon Makeshift Hammer Ballistic Gun Light Assault Rifle Special Weapon Flamer Impact Weapon Makeshift Hammer Slashing Weapon Ripper Build | -11 -10 -10 ------- Run | Yrd Mat Sub Slots Evolved . | . . . Power . | . . . Propulsion . | . . . Utility . | . . . Weapon . | . . . Parts Attached 19 | 7 1 11 Power 4 | 1 . 3 Engine 4 | 1 . 3 Core . | . . . Reactor . | . . . Propulsion 4 | 2 . 2 Treads 4 | 2 . 2 Leg . | . . . Wheel . | . . . Hover . | . . . Flight . | . . . Utility 5 | 2 1 2 Device 2 | 1 . 1 Storage 3 | 1 1 1 Processor . | . . . Hackware . | . . . Protection . | . . . Artifact . | . . . Weapon 6 | 2 . 4 Energy Gun . | . . . Energy Cannon . | . . . Ballistic Gun 2 | 2 . . Ballistic Cannon . | . . . Launcher . | . . . Special Weapon 2 | . . 2 Impact Weapon 1 | . . 1 Slashing Weapon 1 | . . 1 Piercing Weapon . | . . . Special Melee Weapon . | . . . Unidentified Prototypes 1 | . . 1 Parts Lost 7 | . . 7 Power 2 | . . 2 Propulsion 1 | . . 1 Utility 1 | . . 1 Weapon 3 | . . 3 Highest Loss Streak 5 | . . 5 To Critical Strikes . | . . . Average Backups 9 | 1 5 10 Power . | . . . Propulsion 1 | . . 1 Utility 4 | 1 3 4 Weapon 1 | . 1 1 Tool/Special . | . . . Unused Backups 15 | . . 15 Power 2 | . . 2 Propulsion 3 | . . 3 Utility 4 | . . 4 Weapon 4 | . . 4 Tool/Special 2 | . . 2 Average Slot Usage (%) 80 | . 100 78 Engine 4 | . 14 3 Treads 23 | . 28 23 Device 13 | . 14 13 Storage 14 | . 14 14 Ballistic Gun 2 | . 28 . Special Weapon 9 | . . 10 Impact Weapon 8 | . . 8 Slashing Weapon 3 | . . 3 Peak Build Rating 24 | 7 7 24 Average Rating 14 | 6 7 15 On Entrance 4 | . 7 7 Avg Prop Armor Cover (%) . | . . . Naked Turns . | . . . Heaviest Build 87 | 11 46 87 Greatest Support 40 | 40 40 40 Greatest Overweight (x) 2 | . 1 2 Average Overweight (x) 1 | . . 1 Largest Inventory Capacity 25 | 8 20 25 Average Capacity 19 | 7 18 20 Most Carried 23 | 3 6 23 Average Carried 11 | 1 5 12 Final Capacity 25 | 8 20 25 Final Carried 23 | 3 6 23 Class Distribution -------------------- 100% | Mutant Dominant Class ---------------- Mutant | -10/Materials Mutant | -10/Subcaves Resources | -11 -10 -10 ----------- Run | Yrd Mat Sub Matter Collected 544 | 355 . 189 Remotely . | . . . Salvage Created 200 | 144 . 56 Parts 14 | 13 . 1 Haulers Intercepted . | . . . Recyclers Shooed . | . . . Parts Field Recycled . | . . . Retrieved Matter . | . . . Parts Self-Destructed 10 | . . 10 Prevented . | . . . Parts Restored . | . . . Kills | -11 -10 -10 ------- Run | Yrd Mat Sub Combat Hostiles Destroyed 1 | . . 1 Cannons 1 | . . 1 Classes Destroyed 5 | 3 . 2 Worker 1 | 1 . . Tunneler 3 | 3 . . Recycler 1 | 1 . . Artisan 2 | . . 2 Subdweller 1 | . . 1 Best Kill Streak 3 | 3 . 1 Combat Bots Only 1 | . . 1 Max Kills in Single Turn 1 | 1 . 1 Gunslinging . | . . . Exploded . | . . . Melee . | . . . Uniques/NPCs Destroyed . | . . . Combat | -11 -10 -10 -------- Run | Yrd Mat Sub Hostile Shots Fired 32 | . . 32 Missed 10 | . . 10 Hits 22 | . . 22 Projectile 22 | . . 22 AOE 5 | . . 5 Critical Strikes 1 | . . 1 Damage Taken 1027 | . . 1027 Core 256 | . . 256 Absorbed by Shields . | . . . Core Remaining (%) 100 | 100 . . Volleys Fired 45 | 18 . 27 Largest 2 | 2 . 2 Hottest 200 | 40 . 200 Shots Fired 65 | 36 . 29 Gun 54 | 36 . 18 Cannon . | . . . Launcher . | . . . Special 11 | . . 11 Kinetic 54 | 36 . 18 Thermal 11 | . . 11 Explosive . | . . . Electromagnetic . | . . . Robot Hit Streak 9 | 9 . 6 Robot Miss Streak 3 | 3 . 1 Penetration Max . | . . . Secondary Targets . | . . . Shots Hit Robots 45 | 22 . 23 Core Hits 14 | 10 . 4 Critical Kills . | . . . Critical Parts Destroyed 1 | . . 1 Critical Strikes 1 | . . 1 Smash 1 | . . 1 Melee Attacks 42 | . . 42 Impact 35 | . . 35 Slashing 7 | . . 7 Piercing . | . . . Sneak Attacks 3 | . . 3 Combat Hostiles . | . . . Follow-up Attacks . | . . . Damage Inflicted 601 | 185 . 416 Guns 302 | 185 . 117 Cannons . | . . . Explosions . | . . . Melee 230 | . . 230 Ramming . | . . . Kinetic 302 | 185 . 117 Thermal 69 | . . 69 Explosive . | . . . Electromagnetic . | . . . Impact 166 | . . 166 Slashing 64 | . . 64 Piercing . | . . . Highest Corruption 3 | . . 3 Average Corruption 3 | . . 3 Corruption Purged . | . . . Corruption Blocked . | . . . Effects 7 | . . 7 Message Errors 2 | . . 2 Matter Fused 2 | . . 2 Data Loss (minor) 3 | . . 3 Overload Shots . | . . . Overflow Damage 146 | . . 146 Projectiles 5 | . . 5 Explosions . | . . . Melee 141 | . . 141 Knockbacks . | . . . Impact . | . . . Kinetic . | . . . Secondary . | . . . Self-Inflicted Damage . | . . . Shots . | . . . Rammed . | . . . Targets Rammed . | . . . Kicked . | . . . Crushed . | . . . Highest Temperature . | . . . Average Temperature . | . . . Received Heat Transfer 6 | . . 6 Siege Activations . | . . . Martial Activations . | . . . Shielding Activations . | . . . Robots Disrupted . | . . . Combat Hostiles . | . . . Robots Corrupted 1 | . . 1 Combat Hostiles . | . . . Parts Fried 2 | . . 2 Impact Corruptions 3 | . . 3 Robots Melted . | . . . Combat Hostiles . | . . . Parts Melted . | . . . Heat Transferred 260 | . . 260 Parts Sabotaged . | . . . Parts Stolen . | . . . Parts Stripped . | . . . Power Chain Reactions . | . . . Alert | -11 -10 -10 ------- Run | Yrd Mat Sub Maximum Alert Level . | . . . Low Security (%) 100 | 100 100 . Level 1 . | . . . Level 2 . | . . . Level 3 . | . . . Level 4 . | . . . Level 5 . | . . . High Security . | . . . Max Security . | . . . Peak Influence 10 | 10 . . Initial . | . . . Average . | 1 . . Influence Increases 49 | 25 . 24 Destroy 0b10 Robot/C 20 | . . 20 Destroy 0b10 Robot/NC 25 | 25 . . Allied During Kill 4 | . . 4 Influence Decreases 49 | 25 . 24 Time Decay 49 | 25 . 24 Squads Dispatched . | . . . Investigation . | . . . Extermination . | . . . Reinforcement . | . . . Assault . | . . . Garrison . | . . . Intercept . | . . . Searches Triggered . | . . . Construction Impeded . | . . . Haulers Reinforced . | . . . Active Scanning Responses . | . . . Cargo Convoy Interrupts . | . . . Stealth | -11 -10 -10 --------- Run | Yrd Mat Sub Distress Signals . | . . . Communications Jammed . | . . . Distress Signals . | . . . Times Spotted 13 | . . 13 Peak Tracking Total 2 | . . 2 Tactical Retreats . | . . . Traps | -11 -10 -10 ------- Run | Yrd Mat Sub Traps Triggered . | . . . Indirectly . | . . . Trap Hack Attempts . | . . . Triggered . | . . . Disarmed . | . . . Reprogrammed . | . . . Reused . | . . . Traps Extracted . | . . . Installed . | . . . Triggered . | . . . Most Traps Carried 1 | . . 1 Machines | -11 -10 -10 ---------- Run | Yrd Mat Sub Machines Disabled 1 | . . 1 Max in Single Turn 1 | . . 1 Machines Repaired . | . . . Machines Dismantled . | . . . Machines Sabotaged . | . . . Overloaded Fab Kills . | . . . Hacking | -11 -10 -10 --------- Run | Yrd Mat Sub Machines Accessed 2 | . 1 1 Terminals 1 | . 1 . Fabricators . | . . . Repair Stations . | . . . Recycling Units . | . . . Scanalyzers . | . . . Garrison Access . | . . . Total Hacks 6 | . 2 4 Successful 5 | . 1 4 Failed 1 | . 1 . Catastrophic . | . . . Database Lockouts . | . . . Manual 2 | . 2 . Terminals 2 | . 2 . Fabricators . | . . . Repair Stations . | . . . Recycling Units . | . . . Scanalyzers . | . . . Garrison Access . | . . . Terminal Hacks 4 | . . 4 Record 4 | . . 4 Fabricator Hacks . | . . . Repair Station Hacks . | . . . Recycling Unit Hacks . | . . . Scanalyzer . | . . . Garrison Access Hacks . | . . . Unauthorized Hacks 1 | . 1 . Terminals 1 | . 1 . Skim 1 | . 1 . Fabricators . | . . . Repair Stations . | . . . Recycling Units . | . . . Scanalyzers . | . . . Garrison Access . | . . . Data Cores Recovered . | . . . Used . | . . . Hacking Detections 1 | . 1 . Full Trace Events . | . . . Feedback Events . | . . . Feedback Blocked . | . . . Robot Schematics Acquired . | . . . Robots Built . | . . . Authchips . | . . . Time . | . . . Total Robot Build Rating . | . . . Part Schematics Acquired . | . . . Parts Built . | . . . Authchips . | . . . Time . | . . . Total Part Build Rating . | . . . Part Studies Acquired . | . . . Parts Repaired . | . . . Time . | . . . Parts Recycled . | . . . Recycled Matter . | . . . Retrieved Matter . | . . . Retrieved Components . | . . . Parts Scanalyzed . | . . . Part Schematics Acquired . | . . . Parts Damaged . | . . . Bothacking | -11 -10 -10 ------------ Run | Yrd Mat Sub Used RIF Installer . | . . . Robots Hacked . | . . . Non-combat . | . . . Combat . | . . . Robot Hacks Applied . | . . . Relay Couplers Released . | . . . Fabnet Peak Effective % . | . . . Robots Rewired . | . . . Allies Hacked . | . . . Hacks Repelled . | . . . Allies | -11 -10 -10 -------- Run | Yrd Mat Sub Total Allies 11 | . . 11 Largest Group 7 | . . 7 Highest-Rated Group 134 | . . 134 Highest-Rated Ally 20 | . . 20 Total Orders . | . . . Ally Attacks 15 | . . 15 Total Damage 396 | . . 396 Kills 3 | . . 3 Allies Corrupted . | . . . Allies Melted . | . . . Intel | -11 -10 -10 ------- Run | Yrd Mat Sub Active Infowar (turns) 555 | 110 305 140 Seismic 555 | 110 305 140 Robot Analysis Total . | . . . Derelict Logs Recovered . | . . . Drone Launches . | . . . Drone Recoveries . | . . . Exploration | -11 -10 -10 ------------- Run | Yrd Mat Sub Turns Passed 4747 | 205 305 4237 Spaces Moved 1732 | 98 135 1499 Core 10 | 10 . . Treads 1722 | 88 135 1499 Legs . | . . . Wheels . | . . . Hover . | . . . Flight . | . . . Fastest Speed 50 | 50 160 240 Average Speed 259 | 148 224 269 Slowest Speed 360 | 160 240 360 Overloaded Moves . | . . . Propulsion Burnouts . | . . . Robots Hopped . | . . . Potential Cave-ins . | . . . Cave-ins Triggered 1 | . . 1 Exploration Rate (%) 31 | 4 16 73 Regions Visited 2 Branch Regions 1 Pre-discovered Areas 1 | . . 1 Known Exits Taken . | . . . Unknown Exits Taken 2 | 1 1 . Scrap Searched 9 | . . 9 Spaces Dug 2 | . . 2 Terrain Destroyed 2 | . . 2 Melee 2 | . . 2 Projectile . | . . . AOE . | . . . Terrain Rammed . | . . . Walls Destroyed . | . . . Machines Disabled . | . . . Actions | -11 -10 -10 --------- Run | Yrd Mat Sub Total 1869 | 125 137 1607 Wait 5 | . . 5 Move 1730 | 97 134 1499 Hop . | . . . Pick Up 22 | 3 2 17 Fast Attach 11 | 7 . 4 Attach 2 | . . 2 Detach . | . . . Swap 7 | . 1 6 Drop 5 | . . 5 Fire 45 | 18 . 27 Melee 42 | . . 42 Ram . | . . . Kick . | . . . Crush . | . . . Escape Stasis . | . . . Rewire . | . . . Trap . | . . . Miscellaneous . | . . . Route ------- -11/Scrapyard -10/Materials -10/Subcaves (discovered 2 exits: [*Mat x2]) History --------- Turn | Location | Event 4 | -11/Scrapyard | Discovered new exit (range 15) 206 | -11/Scrapyard | Entered Materials 307 | -10/Materials | Discovered new exit (range 14) 308 | -10/Materials | Build established: Mutant 511 | -10/Materials | Entered Subcaves 654 | -10/Subcaves | Core integrity fell below 50% 682 | -10/Subcaves | Lost 5 parts (1p1n1u2w) 937 | -10/Subcaves | Visited triangular shrine 956 | -10/Subcaves | Found Prototype Device 956 | -10/Subcaves | Identified V3-11A's Pendant 961 | -10/Subcaves | Befriended Subdweller 1007 | -10/Subcaves | Learned location of Zion (-7) 1007 | -10/Subcaves | Met a Zionite searching for "candidates" 1243 | -10/Subcaves | Shifting Twisted Machinery released Flamer 1253 | -10/Subcaves | Shifting Twisted Machinery released Mak. Thermal Plating 1601 | -10/Subcaves | Visited Clippyterm 1611 | -10/Subcaves | Learned Factory emergency access door positions 1611 | -10/Subcaves | Learned Factory garrison access intel 1779 | -10/Subcaves | Discovered new exit (range 11) 1841 | -10/Subcaves | Befriended Subdweller 1841 | -10/Subcaves | Befriended Subdweller 2121 | -10/Subcaves | Visited 4L-MR0's lab 2145 | -10/Subcaves | Found Prototype Device 2153 | -10/Subcaves | Found Prototype Flight Unit 2490 | -10/Subcaves | A swath of the cavern ceiling suddenly collapsed 2661 | -10/Subcaves | Befriended Subdweller 2686 | -10/Subcaves | Shifting Twisted Machinery released Sub. Power Source 2686 | -10/Subcaves | Befriended Subdweller 2726 | -10/Subcaves | Shifting Twisted Machinery released Sub. Monowheel 2746 | -10/Subcaves | A swath of the cavern ceiling suddenly collapsed 3392 | -10/Subcaves | Ambushed by angry Subdweller bent on revenge 3396 | -10/Subcaves | Befriended Subdweller 3426 | -10/Subcaves | Lost 3 allies 3531 | -10/Subcaves | Discovered new exit (range 14) 3562 | -10/Subcaves | A Subdweller sparked back to life 3562 | -10/Subcaves | A Subdweller sparked back to life 3562 | -10/Subcaves | A Subdweller sparked back to life 3566 | -10/Subcaves | Befriended Subdweller 3566 | -10/Subcaves | Befriended Subdweller 4401 | -10/Subcaves | Crushed by falling debris 4401 | -10/Subcaves | Core integrity fell below 20% 4626 | -10/Subcaves | Befriended Subdweller 4651 | -10/Subcaves | Disturbed a concealed Subdweller 4651 | -10/Subcaves | Befriended Subdweller 4688 | -10/Subcaves | Disturbed a concealed Subdweller 4707 | -10/Subcaves | Disturbed a concealed Subdweller 4711 | -10/Subcaves | Befriended Subdweller 4748 | -10/Subcaves | Disturbed a concealed Subdweller 4748 | -10/Subcaves | Destroyed by 0D-IOH(R) with Subdweller Machine Gun Last Messages --------------- 04699_ Subatomizers dissect the Sub. Laser. 04699_ AR-CQF(R) affixes Scrap Shield Fragment to Scrap Shield. 04707_ FC-RJ5(R) angrily emerges from the Twisted Machinery. 04710_ AR-CQF(R) affixes Scrap Shield Fragment to Scrap Shield. 04711_ FC-RJ5(R): "GEARHEAD!" 04711_ Searching scrap... 04711_ Found Humpback. 04711_ Found Spk. Treads. 04711_ Found 61 Matter. 04712_ Subatomizers dissect the Sub. Laser. 04716_ Dropped Spk. Treads. 04717_ FC-RJ5(R) affixes Scrap Shield Fragment to Scrap Shield. 04718_ Acquired 10 matter. 04722_ Subatomizers dissect the Sub. Laser, destroying it. 04722_ FC-RJ5(R) affixes Scrap Shield Fragment to Scrap Shield. 04724_ Acquired Humpback. 04725_ Acquired 10 matter. 04733_ Subatomizers dissect the Mak. System Shield. 04734_ Acquired 10 matter. 04748_ 0D-IOH(R) angrily emerges from the Twisted Machinery. Map ----- +----------------------------------------------------+ | ??????# #??????###### ##?###??###??? | | ??????# #### #????### #?# #### ##?? | | ??????# #### ##???## "" ### " ##? | | ??????# ## ##????# " " " " #? | | ??????# ##?#### " ## " #? | | ??????# ### ## ## " #### " ##? | | ?????## ###### #?## "#### #??## #?? | | ????## #????## #### ######??# #?# | | ##### ##????### ""##????## ### | | ####???# ""##???## " | | ##??# "#??## "" % | | ### ## #??# #"###""" | | ####### #??## #### #### ########""" # | | ##???# ###?#####??###??###????## "" " | | ##?## ######???????????????#" " """ < | | ### ## ###?????????????# " """"" # | | ## # #?????????????##" """ "## | | ##?????????????#"" ######? | | ### #?????????????## "#?????? | | # ##?????????????# #?????? | | ### #####??????????## ###??## | | #####?# # R #??????????# #??# | | #?????# # #][! ##?????????## #??# | | ##?????## #### ## RRR" #??????????# #### | | ##??? ??####?## #&%R # #??????????# ## | | ##??? ????????#" # R@R# #??????????# | | ##?? ????????##" ##!&R##?#??????????# | | ##??? ????????#""" ## ## #??????????# ##### " | | ##???? ?????????# # " #??????????####???### | | ##??? #?????????# ##########??????????????????#" | | ##?? ##????????# ????????????????????????###### | | ##? #????????# #????????????????????????#"#"#" | | ## #???????? ????????????????????????####"""# | | #???????? ?????????????????????????#""""## | | # ##?????? ?????????????????????????###"##"# | | # #?????# ????????????????????????????#"# "# | | # ##??? ##?????????????????????????????#""### | | ## ###??? #??????????????????????????????#"##?? | | ## ##???? #???????????????????????????????##"##? | | " #???? #????????????????????????????????#""#? | | ##??# #???????????????????????????????##""#? | | " " ### #???????????????????????????????#"" #? | | " #???????????????????????????????#""##? | | """ #???????????????????????????????####?? | | """ ### #???????????????????????????????????? | | # ##???? #?????????????????????????????????? | | ## ##??????? #?????????????????????????????????? | | # ###?????????????????????????????????????????? | | ## ### #???????????????????????????????? | | #" ???????????????????????????????? | +----------------------------------------------------+ Best States ------------- Heat Dissipation 25 Energy Generation 15 Energy Capacity 200 Matter Stores 300 Matter Capacity 300 Sight Range 16 Terrain Scan Density 10 Evasion (%) 50 Recoil Reduction 2 Item Schematics ----------------- None Robot Schematics ------------------ None Fabricated ------------ Nothing Repaired ---------- Nothing Studied --------- None Alien Tech Used ----------------- None Achievements -------------- None Challenges ------------ None Game ------ Seed HoverImprovedScrap Manual? 0 Play Time 00:13:37 Cumulative 437.8 hours Start 2026.08.17 @ 12:55:13 End 2026.08.17 @ 13:06:52 Sessions 1 Manual Loads 0 Difficulty Rogue Special Mode None Game No. 327 Rogue 327 Adventurer 0 Explorer 0 Win Type - Total 9 Types 4/0/3/2/0/0/0/0/0/0 Lore% 78 Gallery% 73 Achievement% 55 Wizard Run 0 Options --------- Layout 2 ASCII 0 Keyboard 1 Movement Vi Keybinds 0 Fullscreen 2 Font 32/SmallcapsGlow Map View 77x44 Zoom Use 0% Tactical HUD 1 Map Filters NONE Filters NONE Steam 1 RUN: 66b1a3be-b941-45c1-95e9-5e15fa60a123